[Event "Early-Titled-Tuesday-Blitz-May-28-2024"]
[Site "Chess.com"]
[Date "2024.05.28"]
[Round "4"]
[White "Shushik"]
[Black "Larina_Maria"]
[Result "1-0"]
[WhiteElo "2559"]
[BlackElo "2381"]
[TimeControl "180+1"]
[EndTime "8:40:52 PDT"]
[Termination "Shushik won on time"]

1. Nf3 {[%clk 0:03:00.9]} 1... f5 {[%clk 0:02:58.5]} 2. d4 {[%clk 0:02:59.9]}
2... Nf6 {[%clk 0:02:59]} 3. c3 {[%clk 0:03:00.1]} 3... d6 {[%clk 0:02:57.8]} 4.
g3 {[%clk 0:02:59.1]} 4... g6 {[%clk 0:02:57.2]} 5. Bg2 {[%clk 0:02:59.2]} 5...
Bg7 {[%clk 0:02:57.5]} 6. Nbd2 {[%clk 0:02:51.7]} 6... O-O {[%clk 0:02:56.2]} 7.
Qc2 {[%clk 0:02:51.6]} 7... Nc6 {[%clk 0:02:54.9]} 8. Qb3+ {[%clk 0:02:39.5]}
8... e6 {[%clk 0:02:50.5]} 9. O-O {[%clk 0:02:37.5]} 9... Kh8 {[%clk 0:02:29.1]}
10. Ng5 {[%clk 0:02:32.5]} 10... Qe7 {[%clk 0:02:27.9]} 11. e4 {[%clk
0:02:30.5]} 11... h6 {[%clk 0:02:25]} 12. Nh3 {[%clk 0:02:28.9]} 12... g5 {[%clk
0:02:13.6]} 13. f4 {[%clk 0:02:26.5]} 13... g4 {[%clk 0:02:10.1]} 14. Nf2 {[%clk
0:02:26.6]} 14... h5 {[%clk 0:01:59]} 15. Re1 {[%clk 0:02:23.8]} 15... Qd8
{[%clk 0:01:48]} 16. Nf1 {[%clk 0:02:09.9]} 16... Ne7 {[%clk 0:01:33.2]} 17. Bd2
{[%clk 0:01:52.6]} 17... Ng6 {[%clk 0:01:31.6]} 18. d5 {[%clk 0:01:47]} 18...
exd5 {[%clk 0:01:28.7]} 19. exf5 {[%clk 0:01:19.6]} 19... Bxf5 {[%clk
0:01:25.3]} 20. Ne3 {[%clk 0:01:18.5]} 20... Bd7 {[%clk 0:01:12.8]} 21. Nxd5
{[%clk 0:01:16.1]} 21... Nxd5 {[%clk 0:01:12]} 22. Bxd5 {[%clk 0:01:17]} 22...
c6 {[%clk 0:01:11.4]} 23. Bg2 {[%clk 0:01:10.8]} 23... Qb6 {[%clk 0:00:55.8]}
24. Qc2 {[%clk 0:01:08.9]} 24... Bf5 {[%clk 0:00:51.7]} 25. Qc1 {[%clk
0:01:07.4]} 25... h4 {[%clk 0:00:47.9]} 26. Be3 {[%clk 0:01:07.5]} 26... Qc7
{[%clk 0:00:46.3]} 27. Qd2 {[%clk 0:01:06.8]} 27... Rae8 {[%clk 0:00:36.1]} 28.
Bd4 {[%clk 0:01:05]} 28... d5 {[%clk 0:00:32.2]} 29. Bxg7+ {[%clk 0:01:01.2]}
29... Qxg7 {[%clk 0:00:33.1]} 30. Nd3 {[%clk 0:01:01.4]} 30... Be4 {[%clk
0:00:23]} 31. Nc5 {[%clk 0:00:56.3]} 31... Bxg2 {[%clk 0:00:17.9]} 32. Qxg2
{[%clk 0:00:55.9]} 32... Qc7 {[%clk 0:00:08.9]} 33. Ne6 {[%clk 0:00:52.4]} 33...
Qb6+ {[%clk 0:00:08.8]} 34. Kh1 {[%clk 0:00:52.8]} 34... Rf6 {[%clk 0:00:07.7]}
35. Nd4 {[%clk 0:00:52.2]} 35... Rff8 {[%clk 0:00:06.5]} 36. Qf2 {[%clk
0:00:43.7]} 36... h3 {[%clk 0:00:05]} 37. f5 {[%clk 0:00:40.6]} 37... Ne5 {[%clk
0:00:04]} 38. Qf4 {[%clk 0:00:40.6]} 38... Qc7 {[%clk 0:00:01.3]} 39. Qh6+
{[%clk 0:00:38.1]} 39... Qh7 {[%clk 0:00:01]} 40. Qg5 {[%clk 0:00:34.4]} 40...
Qg7 {[%clk 0:00:01]} 41. Qxg7+ {[%clk 0:00:28.9]} 41... Kxg7 {[%clk 0:00:01.1]}
42. Ne6+ {[%clk 0:00:29.6]} 42... Rxe6 {[%clk 0:00:01.1]} 43. fxe6 {[%clk
0:00:30.2]} 43... Nf3 {[%clk 0:00:01.2]} 44. e7 {[%clk 0:00:26.8]} 44... Re8
{[%clk 0:00:01.6]} 45. Re3 {[%clk 0:00:24.2]} 45... Kf6 {[%clk 0:00:01.9]} 46.
Rf1 {[%clk 0:00:22.1]} 46... Rxe7 {[%clk 0:00:01.5]} 47. Rxe7 {[%clk 0:00:22.9]}
47... Kxe7 {[%clk 0:00:02.4]} 48. Rf2 {[%clk 0:00:23.4]} 48... Kd6 {[%clk
0:00:03.3]} 49. Re2 {[%clk 0:00:23.4]} 49... Kc5 {[%clk 0:00:03.3]} 50. Re7
{[%clk 0:00:23.3]} 50... Kc4 {[%clk 0:00:04.2]} 51. Rg7 {[%clk 0:00:21.4]} 51...
Ne5 {[%clk 0:00:03.7]} 52. Kg1 {[%clk 0:00:20.8]} 52... b6 {[%clk 0:00:03.3]}
53. Kf2 {[%clk 0:00:20.6]} 53... c5 {[%clk 0:00:03.1]} 54. Ke3 {[%clk
0:00:20.3]} 54... d4+ {[%clk 0:00:03.4]} 55. cxd4 {[%clk 0:00:20.6]} 55... cxd4+
{[%clk 0:00:04.3]} 56. Ke4 {[%clk 0:00:20]} 56... Nf3 {[%clk 0:00:05]} 57. Rxg4
{[%clk 0:00:19.2]} 57... Nxh2 {[%clk 0:00:05.6]} 58. Rh4 {[%clk 0:00:18.8]}
58... Nf1 {[%clk 0:00:05.8]} 59. Rxh3 {[%clk 0:00:19.2]} 59... Nd2+ {[%clk
0:00:06.4]} 60. Ke5 {[%clk 0:00:18.5]} 60... Nf3+ {[%clk 0:00:06.3]} 61. Kf4
{[%clk 0:00:18.1]} 61... Nd2 {[%clk 0:00:05.4]} 62. g4 {[%clk 0:00:17.1]} 62...
d3 {[%clk 0:00:05.8]} 63. g5 {[%clk 0:00:17.5]} 63... Nb1 {[%clk 0:00:04.7]} 64.
Ke3 {[%clk 0:00:17.2]} 64... d2 {[%clk 0:00:04.9]} 65. Ke2 {[%clk 0:00:17.7]}
65... Kd5 {[%clk 0:00:03.6]} 66. g6 {[%clk 0:00:17.5]} 66... Ke6 {[%clk
0:00:04]} 67. Rf3 {[%clk 0:00:16.1]} 67... b5 {[%clk 0:00:03.1]} 68. g7 {[%clk
0:00:16.2]} 1-0

[Event "Early-Titled-Tuesday-Blitz-May-28-2024"]
[Site "Chess.com"]
[Date "2024.05.28"]
[Round "4"]
[White "SuperGPatzer"]
[Black "mostafa_sakha"]
[Result "1/2-1/2"]
[WhiteElo "2046"]
[BlackElo "2315"]
[TimeControl "180+1"]
[EndTime "8:40:52 PDT"]
[Termination "Game drawn - insufficient material"]

1. g4 {[%clk 0:03:00.9]} 1... d5 {[%clk 0:02:59.6]} 2. h3 {[%clk 0:03:00.1]}
2... c6 {[%clk 0:02:57.2]} 3. d4 {[%clk 0:02:59.8]} 3... h5 {[%clk 0:02:57]} 4.
g5 {[%clk 0:02:59.2]} 4... Bf5 {[%clk 0:02:56.7]} 5. Nc3 {[%clk 0:02:56.5]} 5...
e6 {[%clk 0:02:56.4]} 6. Bg2 {[%clk 0:02:55.8]} 6... Bb4 {[%clk 0:02:52]} 7. Nf3
{[%clk 0:02:47.8]} 7... Ne7 {[%clk 0:02:51.3]} 8. Nh4 {[%clk 0:02:44.9]} 8...
Ng6 {[%clk 0:02:38.4]} 9. Nxf5 {[%clk 0:02:43]} 9... exf5 {[%clk 0:02:39.3]} 10.
h4 {[%clk 0:02:41.3]} 10... Qd6 {[%clk 0:02:32.9]} 11. Qd3 {[%clk 0:02:24.7]}
11... Nf4 {[%clk 0:02:28.5]} 12. Qe3+ {[%clk 0:01:58.2]} 12... Ne6 {[%clk
0:02:18.7]} 13. Bd2 {[%clk 0:01:57.5]} 13... Nd7 {[%clk 0:02:13.9]} 14. O-O-O
{[%clk 0:01:55.7]} 14... O-O-O {[%clk 0:02:13.6]} 15. Na4 {[%clk 0:01:49.7]}
15... Bxd2+ {[%clk 0:02:12.7]} 16. Rxd2 {[%clk 0:01:48.9]} 16... Nb6 {[%clk
0:02:10.5]} 17. Nxb6+ {[%clk 0:01:48.3]} 17... axb6 {[%clk 0:02:11.4]} 18. Qb3
{[%clk 0:01:31.4]} 18... Kc7 {[%clk 0:02:10.3]} 19. e3 {[%clk 0:01:25.9]} 19...
f4 {[%clk 0:01:52.8]} 20. Bh3 {[%clk 0:01:21.1]} 20... Rhe8 {[%clk 0:01:49.1]}
21. Re1 {[%clk 0:01:10.4]} 21... g6 {[%clk 0:01:47.7]} 22. c4 {[%clk 0:00:54.7]}
22... fxe3 {[%clk 0:01:45.5]} 23. Rxe3 {[%clk 0:00:50.4]} 23... dxc4 {[%clk
0:01:40.9]} 24. Qxc4 {[%clk 0:00:50.3]} 24... Qd5 {[%clk 0:01:17.8]} 25. Qxd5
{[%clk 0:00:47.9]} 25... Rxd5 {[%clk 0:01:16.2]} 26. Bxe6 {[%clk 0:00:45.4]}
26... Rxe6 {[%clk 0:01:16.5]} 27. Rxe6 {[%clk 0:00:45.1]} 27... fxe6 {[%clk
0:01:17.4]} 28. Kc2 {[%clk 0:00:45.3]} 28... Rf5 {[%clk 0:01:16.1]} 29. Kd3
{[%clk 0:00:38.7]} 29... Rf4 {[%clk 0:01:15.7]} 30. Re2 {[%clk 0:00:39]} 30...
Kd6 {[%clk 0:01:14.6]} 31. b4 {[%clk 0:00:27.3]} 31... Rxh4 {[%clk 0:01:13.4]}
32. a4 {[%clk 0:00:20.4]} 32... Rg4 {[%clk 0:01:12.6]} 33. b5 {[%clk 0:00:19.6]}
33... Rxg5 {[%clk 0:01:11.6]} 34. bxc6 {[%clk 0:00:19.5]} 34... bxc6 {[%clk
0:01:11.7]} 35. Rb2 {[%clk 0:00:18.6]} 35... b5 {[%clk 0:01:09.9]} 36. a5 {[%clk
0:00:18.4]} 36... Rf5 {[%clk 0:01:08.2]} 37. Ke4 {[%clk 0:00:17.6]} 37... Rf7
{[%clk 0:01:02.2]} 38. f4 {[%clk 0:00:15.7]} 38... Ra7 {[%clk 0:01:01.5]} 39.
Rg2 {[%clk 0:00:15.6]} 39... Rxa5 {[%clk 0:00:57.1]} 40. Rxg6 {[%clk 0:00:16.2]}
40... Ra1 {[%clk 0:00:50.9]} 41. Rh6 {[%clk 0:00:14.6]} 41... Re1+ {[%clk
0:00:49.9]} 42. Kd3 {[%clk 0:00:14.5]} 42... Rf1 {[%clk 0:00:43.3]} 43. Ke4
{[%clk 0:00:11.2]} 43... b4 {[%clk 0:00:42.4]} 44. Rxh5 {[%clk 0:00:11.2]} 44...
b3 {[%clk 0:00:42.3]} 45. Rh2 {[%clk 0:00:10.4]} 45... Re1+ {[%clk 0:00:40.7]}
46. Kd3 {[%clk 0:00:10.5]} 46... Rf1 {[%clk 0:00:36.3]} 47. Rb2 {[%clk
0:00:08.3]} 47... Rxf4 {[%clk 0:00:35.9]} 48. Kc4 {[%clk 0:00:07.8]} 48... Rf3
{[%clk 0:00:35.4]} 49. Rb1 {[%clk 0:00:07.2]} 49... Re3 {[%clk 0:00:21.8]} 50.
Rb2 {[%clk 0:00:05.6]} 50... Kc7 {[%clk 0:00:20.5]} 51. Rxb3 {[%clk 0:00:02.2]}
51... Rxb3 {[%clk 0:00:20]} 52. Kxb3 {[%clk 0:00:03.1]} 52... Kd7 {[%clk
0:00:12.6]} 53. Kb4 {[%clk 0:00:03]} 53... Kd6 {[%clk 0:00:10.8]} 54. Kc4 {[%clk
0:00:03.2]} 54... Kd7 {[%clk 0:00:09.3]} 55. Kc5 {[%clk 0:00:01.7]} 55... Kc7
{[%clk 0:00:09.2]} 56. Kb4 {[%clk 0:00:01]} 56... Kb6 {[%clk 0:00:06.9]} 57. Kc4
{[%clk 0:00:01]} 57... Kb7 {[%clk 0:00:06.9]} 58. Kc5 {[%clk 0:00:01]} 58... Kc7
{[%clk 0:00:07.2]} 59. Kb4 {[%clk 0:00:01.5]} 59... Kd6 {[%clk 0:00:03.6]} 60.
Kc4 {[%clk 0:00:01.9]} 60... e5 {[%clk 0:00:02.4]} 61. dxe5+ {[%clk 0:00:02]}
61... Kxe5 {[%clk 0:00:03]} 62. Kc5 {[%clk 0:00:02.5]} 62... Ke4 {[%clk
0:00:02.8]} 63. Kxc6 {[%clk 0:00:03.4]} 1/2-1/2

[Event "Early-Titled-Tuesday-Blitz-May-28-2024"]
[Site "Chess.com"]
[Date "2024.05.28"]
[Round "4"]
[White "Viacheslav92"]
[Black "artin10862"]
[Result "1/2-1/2"]
[WhiteElo "2544"]
[BlackElo "3073"]
[TimeControl "180+1"]
[EndTime "8:40:57 PDT"]
[Termination "Game drawn by repetition"]

1. e4 {[%clk 0:02:56.4]} 1... e6 {[%clk 0:02:54.7]} 2. d4 {[%clk 0:02:55.6]}
2... d5 {[%clk 0:02:55.6]} 3. Nd2 {[%clk 0:02:56]} 3... Be7 {[%clk 0:02:53.3]}
4. Ngf3 {[%clk 0:02:55]} 4... Nf6 {[%clk 0:02:42.6]} 5. Bd3 {[%clk 0:02:53]}
5... c5 {[%clk 0:02:33.2]} 6. exd5 {[%clk 0:02:41.7]} 6... exd5 {[%clk 0:02:30]}
7. dxc5 {[%clk 0:02:36.4]} 7... O-O {[%clk 0:02:29.9]} 8. Nb3 {[%clk 0:02:32.9]}
8... a5 {[%clk 0:02:05.3]} 9. a4 {[%clk 0:02:21.6]} 9... Na6 {[%clk 0:02:05]}
10. Be3 {[%clk 0:02:20.1]} 10... Qc7 {[%clk 0:01:57.2]} 11. Bxa6 {[%clk
0:02:01.2]} 11... Rxa6 {[%clk 0:01:56.4]} 12. h3 {[%clk 0:02:00.3]} 12... Rd8
{[%clk 0:01:49.7]} 13. O-O {[%clk 0:01:58.9]} 13... Ne4 {[%clk 0:01:49.6]} 14.
Nfd4 {[%clk 0:01:57.7]} 14... Rg6 {[%clk 0:01:26.3]} 15. Qf3 {[%clk 0:01:52.4]}
15... f5 {[%clk 0:01:20.9]} 16. Nb5 {[%clk 0:01:50.2]} 16... Qe5 {[%clk
0:01:09.9]} 17. Bd4 {[%clk 0:01:32.6]} 17... Qb8 {[%clk 0:01:09.5]} 18. Be3
{[%clk 0:01:31.7]} 18... Qe5 {[%clk 0:00:36.3]} 19. Bd4 {[%clk 0:01:30.1]} 19...
Qb8 {[%clk 0:00:36.1]} 20. Be3 {[%clk 0:01:30]} 20... f4 {[%clk 0:00:25.3]} 21.
Bxf4 {[%clk 0:01:26.9]} 21... Rf8 {[%clk 0:00:25.3]} 22. Bxb8 {[%clk 0:01:24.3]}
22... Rxf3 {[%clk 0:00:26.2]} 23. Kh2 {[%clk 0:01:20]} 23... Rxf2 {[%clk
0:00:16.7]} 24. Rxf2 {[%clk 0:01:17.3]} 24... Nxf2 {[%clk 0:00:17.6]} 25. Nxa5
{[%clk 0:01:13.7]} 25... Bxc5 {[%clk 0:00:16.1]} 26. Nb3 {[%clk 0:01:07.9]}
26... Be3 {[%clk 0:00:08.3]} 27. Re1 {[%clk 0:01:06.2]} 27... Re6 {[%clk
0:00:08.9]} 28. Bg3 {[%clk 0:00:56.1]} 28... Ng4+ {[%clk 0:00:03.6]} 29. hxg4
{[%clk 0:00:36.7]} 29... Rh6+ {[%clk 0:00:03.9]} 30. Bh4 {[%clk 0:00:37.3]}
30... Rxh4+ {[%clk 0:00:04.8]} 31. Kg3 {[%clk 0:00:37.2]} 31... Rxg4+ {[%clk
0:00:05.7]} 32. Kf3 {[%clk 0:00:36.2]} 32... d4 {[%clk 0:00:05.5]} 33. N5xd4
{[%clk 0:00:31.3]} 33... Bxd4 {[%clk 0:00:03.3]} 34. Re8+ {[%clk 0:00:31.9]}
34... Kf7 {[%clk 0:00:03.7]} 35. Rxc8 {[%clk 0:00:32.8]} 35... h5 {[%clk
0:00:03.9]} 36. Rc4 {[%clk 0:00:29.9]} 36... Bxb2 {[%clk 0:00:02.1]} 37. Rxg4
{[%clk 0:00:30.8]} 37... hxg4+ {[%clk 0:00:03]} 38. Kxg4 {[%clk 0:00:31.6]}
38... Ke7 {[%clk 0:00:03.2]} 39. Kf5 {[%clk 0:00:30.8]} 39... Kd6 {[%clk
0:00:03.4]} 40. g4 {[%clk 0:00:19]} 40... Kd5 {[%clk 0:00:03.6]} 41. g5 {[%clk
0:00:16.2]} 41... b6 {[%clk 0:00:04]} 42. a5 {[%clk 0:00:16.1]} 42... b5 {[%clk
0:00:03.1]} 43. Kg6 {[%clk 0:00:11.5]} 43... Kc6 {[%clk 0:00:03]} 44. Kf7 {[%clk
0:00:10.1]} 44... Bc3 {[%clk 0:00:03]} 45. Ke6 {[%clk 0:00:09.9]} 45... b4
{[%clk 0:00:02.8]} 46. g6 {[%clk 0:00:10.8]} 46... Bb2 {[%clk 0:00:02.8]} 47.
Kf7 {[%clk 0:00:11.7]} 47... Bc3 {[%clk 0:00:02.9]} 48. Ke6 {[%clk 0:00:12.1]}
48... Bb2 {[%clk 0:00:03.2]} 49. Kf5 {[%clk 0:00:12.4]} 49... Kb5 {[%clk
0:00:02.6]} 50. Ke4 {[%clk 0:00:11.9]} 50... Bc3 {[%clk 0:00:02.9]} 51. Kd5
{[%clk 0:00:12.4]} 51... Bb2 {[%clk 0:00:03.2]} 52. Kd6 {[%clk 0:00:12.7]} 52...
Bc3 {[%clk 0:00:03.3]} 53. Kc7 {[%clk 0:00:13.1]} 53... Ka6 {[%clk 0:00:03.4]}
54. Kc6 {[%clk 0:00:13.1]} 54... Be1 {[%clk 0:00:03.3]} 55. Kd5 {[%clk
0:00:12.7]} 55... Bc3 {[%clk 0:00:03.6]} 56. Kc4 {[%clk 0:00:13.3]} 56... Be1
{[%clk 0:00:04]} 57. Kd3 {[%clk 0:00:12.7]} 57... Kb5 {[%clk 0:00:03.7]} 58. Ke4
{[%clk 0:00:12.6]} 58... Bc3 {[%clk 0:00:04.1]} 59. Kd5 {[%clk 0:00:12.5]} 59...
Be1 {[%clk 0:00:04.5]} 60. Ke6 {[%clk 0:00:13.4]} 60... Bc3 {[%clk 0:00:04.6]}
61. Ke7 {[%clk 0:00:13.8]} 61... Be1 {[%clk 0:00:04.6]} 62. Ke8 {[%clk
0:00:14.2]} 62... Bc3 {[%clk 0:00:05]} 63. Kd8 {[%clk 0:00:14.6]} 63... Ka6
{[%clk 0:00:03.8]} 64. Kc8 {[%clk 0:00:14.9]} 64... Be5 {[%clk 0:00:04.3]} 65.
Kd7 {[%clk 0:00:14.4]} 65... Kb5 {[%clk 0:00:04.8]} 66. Ke6 {[%clk 0:00:14.1]}
66... Bc3 {[%clk 0:00:05.3]} 67. Kd5 {[%clk 0:00:15]} 1/2-1/2

[Event "Early-Titled-Tuesday-Blitz-May-28-2024"]
[Site "Chess.com"]
[Date "2024.05.28"]
[Round "4"]
[White "eightbyeightchess"]
[Black "chessdjw"]
[Result "0-1"]
[WhiteElo "2427"]
[BlackElo "2782"]
[TimeControl "180+1"]
[EndTime "8:40:58 PDT"]
[Termination "chessdjw won by checkmate"]

1. e4 {[%clk 0:03:00.9]} 1... e5 {[%clk 0:02:59.6]} 2. Nf3 {[%clk 0:03:00.3]}
2... Nc6 {[%clk 0:03:00.2]} 3. Bb5 {[%clk 0:03:00.4]} 3... a6 {[%clk 0:03:00.5]}
4. Ba4 {[%clk 0:03:00.3]} 4... Nf6 {[%clk 0:03:01]} 5. d4 {[%clk 0:03:00.4]}
5... exd4 {[%clk 0:03:00.2]} 6. O-O {[%clk 0:02:57.5]} 6... Be7 {[%clk
0:03:00.5]} 7. e5 {[%clk 0:02:54.4]} 7... Ne4 {[%clk 0:03:00.8]} 8. Nxd4 {[%clk
0:02:25.9]} 8... O-O {[%clk 0:03:00.2]} 9. c3 {[%clk 0:02:08.2]} 9... Nc5 {[%clk
0:02:39.9]} 10. Bc2 {[%clk 0:02:07.5]} 10... Nxe5 {[%clk 0:02:39.4]} 11. Bxh7+
{[%clk 0:02:05.7]} 11... Kxh7 {[%clk 0:02:38.1]} 12. Qh5+ {[%clk 0:02:06.2]}
12... Kg8 {[%clk 0:02:38.7]} 13. Qxe5 {[%clk 0:02:06]} 13... d5 {[%clk
0:02:32.7]} 14. Rd1 {[%clk 0:01:26.9]} 14... Bd6 {[%clk 0:02:29.7]} 15. Qh5
{[%clk 0:01:24.3]} 15... Qf6 {[%clk 0:01:58.8]} 16. Bg5 {[%clk 0:01:06.9]} 16...
Qe5 {[%clk 0:01:58.3]} 17. Nd2 {[%clk 0:01:03]} 17... f6 {[%clk 0:01:37.6]} 18.
N2f3 {[%clk 0:00:57.4]} 18... Qe8 {[%clk 0:01:37.8]} 19. Qxe8 {[%clk 0:00:41.5]}
19... Rxe8 {[%clk 0:01:38.7]} 20. Be3 {[%clk 0:00:37.6]} 20... Bd7 {[%clk
0:01:34.7]} 21. Nb3 {[%clk 0:00:28]} 21... Na4 {[%clk 0:01:25.9]} 22. Rxd5
{[%clk 0:00:24.4]} 22... Nxb2 {[%clk 0:01:26.5]} 23. Rd4 {[%clk 0:00:21.6]}
23... Na4 {[%clk 0:01:23.1]} 24. c4 {[%clk 0:00:18.9]} 24... Bc6 {[%clk
0:01:22.2]} 25. Rc1 {[%clk 0:00:16.6]} 25... Nc5 {[%clk 0:00:53.7]} 26. Nfd2
{[%clk 0:00:09.3]} 26... Ne6 {[%clk 0:00:41.8]} 27. Rd3 {[%clk 0:00:07.5]} 27...
Rad8 {[%clk 0:00:39.9]} 28. Rdc3 {[%clk 0:00:04.5]} 28... Bb4 {[%clk 0:00:32.6]}
29. R3c2 {[%clk 0:00:04.6]} 29... Rd3 {[%clk 0:00:30.9]} 30. h3 {[%clk
0:00:03.4]} 30... Red8 {[%clk 0:00:30.7]} 31. Nf1 {[%clk 0:00:03.7]} 31... Kf7
{[%clk 0:00:28.8]} 32. Re2 {[%clk 0:00:03.8]} 32... a5 {[%clk 0:00:27]} 33. Bd2
{[%clk 0:00:04.1]} 33... Bxd2 {[%clk 0:00:19.7]} 34. Nfxd2 {[%clk 0:00:04.5]}
34... a4 {[%clk 0:00:18.4]} 35. Rxe6 {[%clk 0:00:03.9]} 35... axb3 {[%clk
0:00:16.7]} 36. Rxc6 {[%clk 0:00:02.6]} 36... bxc6 {[%clk 0:00:08.7]} 37. Nxb3
{[%clk 0:00:02.6]} 37... Ra8 {[%clk 0:00:09.4]} 38. Rc2 {[%clk 0:00:02.5]} 38...
Ra3 {[%clk 0:00:07.4]} 39. g3 {[%clk 0:00:02.7]} 39... Rd1+ {[%clk 0:00:07.4]}
40. Kg2 {[%clk 0:00:03.1]} 40... g5 {[%clk 0:00:07.3]} 41. Kf3 {[%clk
0:00:03.4]} 41... Kg6 {[%clk 0:00:06.8]} 42. h4 {[%clk 0:00:03.8]} 42... gxh4
{[%clk 0:00:05.7]} 43. gxh4 {[%clk 0:00:04.7]} 43... Rh1 {[%clk 0:00:05.6]} 44.
Kg3 {[%clk 0:00:05]} 44... Rg1+ {[%clk 0:00:05.5]} 45. Kf4 {[%clk 0:00:05.3]}
45... f5 {[%clk 0:00:02.9]} 46. f3 {[%clk 0:00:05.3]} 46... Kf6 {[%clk
0:00:02.9]} 47. Nd4 {[%clk 0:00:05]} 47... Ra4 {[%clk 0:00:01.2]} 48. Nxf5
{[%clk 0:00:04.6]} 48... Ra1 {[%clk 0:00:01.4]} 49. Ne3 {[%clk 0:00:04.5]} 49...
R1xa2 {[%clk 0:00:01.5]} 50. Rc3 {[%clk 0:00:04.3]} 50... R2a3 {[%clk
0:00:01.9]} 51. Rc1 {[%clk 0:00:03.9]} 51... c5 {[%clk 0:00:02.5]} 52. Rg1
{[%clk 0:00:03.7]} 52... Rd3 {[%clk 0:00:02.5]} 53. h5 {[%clk 0:00:04.1]} 53...
Rd4+ {[%clk 0:00:02.9]} 54. Kg3 {[%clk 0:00:04.7]} 54... Ra3 {[%clk 0:00:03.5]}
55. Re1 {[%clk 0:00:04.6]} 55... Rdd3 {[%clk 0:00:03]} 56. Nd5+ {[%clk
0:00:04.8]} 56... Kg5 {[%clk 0:00:03.1]} 57. Rf1 {[%clk 0:00:05.1]} 57... c6
{[%clk 0:00:03]} 58. Nc7 {[%clk 0:00:03.6]} 58... Kxh5 {[%clk 0:00:02.8]} 59.
Ne6 {[%clk 0:00:03.9]} 59... Rdc3 {[%clk 0:00:02.2]} 60. Nxc5 {[%clk 0:00:04.1]}
60... Rxc4 {[%clk 0:00:02.4]} 61. Ne4 {[%clk 0:00:04.7]} 61... Rxe4 {[%clk
0:00:02.4]} 62. Rh1+ {[%clk 0:00:04.7]} 62... Kg5 {[%clk 0:00:02.6]} 63. Rc1
{[%clk 0:00:04.8]} 63... Ree3 {[%clk 0:00:02.5]} 64. Rc5+ {[%clk 0:00:05.1]}
64... Kf6 {[%clk 0:00:03]} 65. Rxc6+ {[%clk 0:00:06]} 65... Kf7 {[%clk
0:00:03.4]} 66. Rc4 {[%clk 0:00:06.8]} 66... Rxf3+ {[%clk 0:00:03.5]} 67. Kg4
{[%clk 0:00:07.5]} 67... Rf6 {[%clk 0:00:03.9]} 68. Rc7+ {[%clk 0:00:07.4]}
68... Kg6 {[%clk 0:00:04.4]} 69. Rc5 {[%clk 0:00:08.3]} 69... Ra4+ {[%clk
0:00:04.6]} 70. Kg3 {[%clk 0:00:08.8]} 70... Rb6 {[%clk 0:00:04.8]} 71. Rc8
{[%clk 0:00:09.7]} 71... Rb3+ {[%clk 0:00:05.1]} 72. Kf2 {[%clk 0:00:10.3]}
72... Ra2+ {[%clk 0:00:05.7]} 73. Ke1 {[%clk 0:00:10.7]} 73... Rb1+ {[%clk
0:00:06.2]} 74. Rc1 {[%clk 0:00:11.2]} 74... Rxc1# {[%clk 0:00:06.9]} 0-1